Cogmind - Beta 13 @@@ ROGUE MODE // 2024.04.12 @ 02:14:12 Player: SYPIAC Result: Destroyed by P-70 Sage with Tesla Rifle Performance ------------- Evolutions (5) 2500 Regions Visited (14) 2800 Robots Destroyed (150) 750 Value Destroyed (5962) 5962 Prototype IDs (12) 240 Alien Tech Used (0) 0 Bonus (1425) 1425 TOTAL SCORE: 13677 Bonus ------- High Alert Combat Kills 208 Follower Combat Kills 222 Entered Garrisons 200 Used RIF Installer 500 Entered DSFs 500 Friendly Fire -205 Cogmind --------- Core Integrity 0/1000 Matter 295/300 Energy 100/100 System Corruption 2% Temperature Cool (1) Movement Core (100) Ox1 Location -4/Proximity Caves Parts ------- > --- POWER (2) -------- (None) > --- PROPULSION (6) --- (None) > --- UTILITY (6) ------ Hardened Light Armor Plating > --- WEAPON (3) ------- (None) > --- INVENTORY (5) ---- Light Treads Light Treads Carbon-fiber Leg Advanced Trap Extractor (5/8 Dirty Bomb) Peak State ------------ > --- POWER ------------ Light Neutrino Core Micro Fission Core > --- PROPULSION ------- Improved Hover Unit Antigrav System Antigrav System Antigrav System Cooled Gravmag System Cooled Gravmag System > --- UTILITY ---------- Advanced Cooling System Large Storage Unit Improved Sensor Array Improved Signal Interpreter Improved Transmission Jammer Medium Reactive Plating > --- WEAPON ----------- Advanced Plasma Cannon Antimatter Cannon Antimatter Cannon > --- INVENTORY -------- Reinforced Deuterium Engine Angular Momentum Engine Antigrav System Improved Cooling System Energy Well Compact Matter Pod Structural Scanner Recoil Nullifier Kinecellerator Improved Medium Armor Plating Improved Thermal Shield Drone Bay Advanced Assault Cannon Improved Remote Datajack Impact Mace [Rating: 94] Favorites ----------- Power Angular Momentum Engine Engine Angular Momentum Engine Power Core Light Neutrino Core Propulsion Armored Wheel Treads Improved Medium Treads Leg Armored Leg Wheel Armored Wheel Hover Unit Cooled Gravmag System Flight Unit VTOL Module Utility Large Storage Unit Device Improved Sensor Array Storage Large Storage Unit Processor Improved Signal Interpreter Hackware Improved System Shield Protection Improved Medium Armor Plating Weapon Advanced Assault Cannon Energy Gun Cooled Pulse Rifle Energy Cannon Phase Cannon Ballistic Gun Autogun Ballistic Cannon Advanced Assault Cannon Launcher Proton Missile Launcher Special Weapon Improved Remote Datajack Impact Weapon Impact Mace Slashing Weapon Chainsword Build | -11 -10 -9 -9 -8 -8 -7 -7 -6 -6 -5 -5 -5 -5 -4 ------- Run | Yrd Mat Mat Min Mat Gar Fac DSF Fac Ext Fac Upp Upp War Pro Slots Evolved 10 | . . 2 . 2 . 2 . 2 . 2 . . . . Power 1 | . . . . . . . . . . 1 . . . . Propulsion 4 | . . 2 . . . . . 2 . . . . . . Utility 4 | . . . . 2 . 2 . . . . . . . . Weapon 1 | . . . . . . . . . . 1 . . . . Parts Attached 277 | . 2 24 4 29 30 2 41 16 27 41 18 40 2 1 Power 33 | . . 2 1 5 3 . 8 1 3 4 2 4 . . Engine 18 | . . 2 1 4 1 . 3 1 2 2 2 . . . Core 15 | . . . . 1 2 . 5 . 1 2 . 4 . . Reactor . | . . . . . . . . . . . . . . . Propulsion 71 | . . 12 . 5 10 . 7 8 9 10 1 8 1 . Treads 15 | . . 3 . . 1 . 1 . 7 1 . 2 . . Leg 14 | . . 5 . . . . . 5 2 1 . . 1 . Wheel 20 | . . 4 . 5 9 . . . . . . 2 . . Hover 19 | . . . . . . . 6 3 . 8 1 1 . . Flight 3 | . . . . . . . . . . . . 3 . . Utility 101 | . 2 2 1 10 12 2 15 3 6 15 13 18 1 1 Device 48 | . . . . 4 1 2 3 1 2 9 12 14 . . Storage 4 | . . 1 . . 1 . 2 . . . . . . . Processor 5 | . . . 1 3 . . . . 1 . . . . . Hackware 3 | . . . . . . . 3 . . . . . . . Protection 41 | . 2 1 . 3 10 . 7 2 3 6 1 4 1 1 Artifact . | . . . . . . . . . . . . . . . Weapon 72 | . . 8 2 9 5 . 11 4 9 12 2 10 . . Energy Gun 11 | . . . . 2 4 . 3 . . . . 2 . . Energy Cannon 15 | . . 3 . 3 . . 1 . 5 2 1 . . . Ballistic Gun 14 | . . 5 1 3 . . . . 1 1 . 3 . . Ballistic Cannon 13 | . . . . . . . . 4 1 6 . 2 . . Launcher 5 | . . . 1 1 . . 1 . 2 . . . . . Special Weapon 2 | . . . . . . . . . . 1 . 1 . . Impact Weapon 8 | . . . . . 1 . 2 . . 2 1 2 . . Slashing Weapon 4 | . . . . . . . 4 . . . . . . . Piercing Weapon . | . . . . . . . . . . . . . . . Special Melee Weapon . | . . . . . . . . . . . . . . . Unidentified Prototypes 10 | . . 1 . 2 . . . 1 1 5 . . . . Corrupted Parts 8 | . . . . . . . . . 6 . . 2 . . System Corruption 34 | . . . . . . . . . 25 . . 9 . . Parts Lost 79 | . . 1 1 10 3 . 23 1 4 5 5 22 . 4 Power 15 | . . . 1 3 . . 5 . 1 . . 5 . . Propulsion 27 | . . . . 4 1 . 5 . 1 4 4 6 . 2 Utility 18 | . . . . 2 1 . 7 . 1 . 1 5 . 1 Weapon 19 | . . 1 . 1 1 . 6 1 1 1 . 6 . 1 Highest Loss Streak 19 | . . 1 1 4 3 . 19 1 3 2 2 11 . 3 To Critical Strikes . | . . . . . . . . . . . . . . . Average Slot Usage (%) 88 | . 88 99 100 97 84 . 73 99 96 99 89 65 33 16 Engine 5 | . 14 11 11 7 4 . 1 1 4 8 . . . . Core 3 | . . . . 1 3 . 4 4 1 2 10 4 . . Treads 7 | . . 3 . . . . . . 7 26 . . 7 . Leg 7 | . 28 31 . . . . . 24 30 . . . . . Wheel 8 | . . 8 44 34 28 . 9 . . . . 1 . . Hover 6 | . . . . . . . 12 15 . 7 24 8 . . Device 10 | . . . . 12 6 . 10 6 6 16 18 11 5 4 Storage 6 | . 14 11 11 9 9 . 5 6 6 5 5 4 . . Processor 3 | . . . . 5 4 . . . . 5 5 4 . . Hackware 2 | . . . . . . . 4 20 17 . . . . . Protection 7 | . 3 11 11 8 11 . 9 6 6 5 3 6 1 . Energy Gun 2 | . 14 1 . 3 10 . 4 . . . . . . . Energy Cannon 4 | . . 10 11 8 . . . . 7 5 5 . . . Ballistic Gun 3 | . 14 9 10 4 4 . . . . 1 . 5 . . Ballistic Cannon 3 | . . . . . . . . 12 4 9 5 1 . . Impact Weapon 1 | . . . . . . . 1 . . . 4 4 5 1 Naked Turns 10 | . . . . . . . 8 . . . . 2 . . Heaviest Build 142 | 12 13 96 95 103 103 105 142 53 86 110 78 79 8 8 Greatest Support 150 | 20 20 48 48 48 48 48 48 80 150 150 55 40 9 9 Greatest Overweight (x) 27 | . . 7 1 2 27 2 3 1 1 4 2 4 . 1 Average Overweight (x) . | . . . 1 1 1 2 . . . . 1 1 . . Largest Inventory Capacity 25 | . 8 25 25 25 25 25 25 15 15 15 15 15 5 5 Average Capacity 16 | . 8 14 25 25 25 25 16 15 15 15 15 13 5 5 Most Carried 25 | . 8 17 20 25 25 23 24 15 15 15 15 14 5 5 Average Carried 13 | . 6 8 18 20 23 22 13 13 13 14 13 8 3 4 Final Capacity 25 | 8 8 25 25 25 25 25 15 15 15 15 15 5 5 5 Final Carried 25 | 6 7 17 20 25 24 23 13 15 15 15 15 3 4 4 Class Distribution -------------------- 47% | Mutant 14% | Scavenger-Skirmisher 12% | Scavenger-Mutant 11% | Hacker-Mutant 6% | Skirmisher 5% | Scavenger-Tank Dominant Class ---------------- Mutant | -10/Materials Mutant | -9/Materials Mutant | -9/Mines Mutant | -8/Materials Mutant | -8/Garrison Mutant | -7/Factory Mutant | -7/DSF Hacker-Mutant | -6/Factory Hacker-Mutant | -6/Extension Scavenger-Skirmisher | -5/Factory Mutant | -5/Upper Caves Scavenger-Mutant | -5/Upper Caves Mutant | -5/Warlord Mutant | -4/Proximity Caves Resources | -11 -10 -9 -9 -8 -8 -7 -7 -6 -6 -5 -5 -5 -5 -4 ----------- Run | Yrd Mat Mat Min Mat Gar Fac DSF Fac Ext Fac Upp Upp War Pro Matter Collected 4951 | 184 28 504 57 394 517 . 398 . 540 1025 306 993 . 5 Remotely . | . . . . . . . . . . . . . . . Salvage Created 5415 | . 46 619 136 804 696 . 456 . 864 1055 190 549 . . Parts 263 | . 6 48 11 28 38 . 17 . 38 57 2 18 . . Haulers Intercepted 8 | . . 3 . 2 . . . . 2 1 . . . . Recyclers Shooed 4 | . . 1 . 1 . . . . . 2 . . . . Parts Field Recycled . | . . . . . . . . . . . . . . . Retrieved Matter . | . . . . . . . . . . . . . . . Parts Self-Destructed 17 | . . . . . . . . . . . 1 16 . . Prevented 3 | . . . . . . . . . . . . 3 . . Kills | -11 -10 -9 -9 -8 -8 -7 -7 -6 -6 -5 -5 -5 -5 -4 ------- Run | Yrd Mat Mat Min Mat Gar Fac DSF Fac Ext Fac Upp Upp War Pro Combat Hostiles Destroyed 119 | . 3 18 6 13 20 . 11 . 13 17 3 15 . . Melee 10 | . . . . . 2 . 4 . . . . 4 . . Guns 57 | . 3 9 4 8 18 . 4 . 2 3 . 6 . . Cannons 33 | . . 9 . 4 . . . . 4 10 2 4 . . AOE 12 | . . . 2 . . . 2 . 7 1 . . . . Classes Destroyed 18 | . 1 5 . 3 2 . 2 . 2 2 1 . . . Worker 8 | . . . . . . . . . . 8 . . . . Builder 3 | . . . . . . . . . 1 2 . . . . Hauler 8 | . . 3 . 2 . . . . 2 1 . . . . Recycler 2 | . . . . 1 . . . . . 1 . . . . Minesweeper 2 | . . . . . . . . . . . 1 1 . . Operator 3 | . . 1 . . . . . . . 2 . . . . Watcher 5 | . . 2 . 1 . . . . . 2 . . . . Swarmer 41 | . 3 12 3 . 7 . . . 4 . . 12 . . Saboteur 2 | . . . . . 2 . . . . . . . . . Grunt 44 | . . 3 3 7 8 . 6 . 7 6 3 1 . . Brawler 1 | . . . . . 1 . . . . . . . . . Duelist 2 | . . . . 1 1 . . . . . . . . . Sentry 8 | . . 3 . 3 1 . . . . 1 . . . . Specialist 3 | . . . . . . . 3 . . . . . . . Hunter 5 | . . . . 2 . . 1 . . 2 . . . . Programmer 9 | . . . . . . . . . . 8 . 1 . . Heavy 1 | . . . . . . . 1 . . . . . . . Behemoth 2 | . . . . . . . . . 2 . . . . . Decomposer 3 | . . . . . . . . . . . 1 2 . . Packrat 1 | . . . . . . . . . . . 1 . . . Thug 1 | . . . . . . . . . . . . 1 . . Best Kill Streak 7 | . 3 5 3 3 4 . 4 . 7 5 2 4 . . Combat Bots Only 6 | . 3 4 3 3 4 . 4 . 6 3 2 4 . . Max Kills in Single Turn 5 | . 1 1 2 1 2 . 2 . 5 2 1 1 . . Gunslinging 1 | . . . . . 1 . . . . . . . . . Exploded 4 | . . . 2 . . . 1 . 4 1 . . . . Melee 2 | . . . . . 1 . 2 . . . . 1 . . Uniques/NPCs Destroyed . | . . . . . . . . . . . . . . . Combat | -11 -10 -9 -9 -8 -8 -7 -7 -6 -6 -5 -5 -5 -5 -4 -------- Run | Yrd Mat Mat Min Mat Gar Fac DSF Fac Ext Fac Upp Upp War Pro Hostile Shots Fired 1142 | . 9 99 15 114 96 . 245 2 134 121 38 240 . 29 Missed 306 | . 3 32 6 26 15 . 64 2 48 24 9 64 . 13 Damage Taken 14128 | . 89 714 122 1450 827 . 3238 . 1983 1780 525 3087 . 313 Core 2206 | . 18 67 12 126 185 . 698 . 97 103 50 692 . 158 Absorbed by Shields 54 | . . . . . . . . . 54 . . . . . Redirected to Shielding 10 | . . 10 . . . . . . . . . . . . Ignored by Resistances 751 | . . . . . . . 241 . 190 266 20 34 . . Regen/Repaired (Parts) 113 | . . 59 . . . . . . 54 . . . . . Core Remaining (%) 67 | 100 92 . 80 . 43 . . . 88 . . . . . Volleys Fired 470 | . 4 63 6 61 58 . 43 . 47 101 27 60 . . Largest 3 | . 2 2 2 2 2 . 2 . 2 3 3 3 . . Hottest 219 | . 60 136 101 136 125 . 125 . 145 190 178 219 . . Shots Fired 863 | . 8 124 11 121 95 . 64 . 90 211 46 93 . . Gun 389 | . 8 67 4 66 95 . 53 . 3 24 . 69 . . Cannon 462 | . . 57 6 55 . . 5 . 82 187 46 24 . . Launcher 12 | . . . 1 . . . 6 . 5 . . . . . Special . | . . . . . . . . . . . . . . . Kinetic 368 | . 4 57 4 44 41 . . . 19 113 18 68 . . Thermal 460 | . . 57 6 77 54 . 58 . 66 98 28 16 . . Explosive 7 | . . . 1 . . . 6 . . . . . . . Electromagnetic 28 | . 4 10 . . . . . . 5 . . 9 . . Robot Hit Streak 20 | . 2 8 3 14 10 . 11 . 16 20 8 7 . . Robot Miss Streak 8 | . 3 5 1 4 2 . 2 . 7 5 4 8 . . Penetration Max 1 | . . . . . . . . . . 1 . . . . Secondary Targets 3 | . . . . 1 2 . . . . . . . . . Max Gunslinging Chain 1 | . . . . 1 1 . . . . . . . . . Shots Hit Robots 553 | . 3 71 5 86 54 . 63 . 66 108 28 69 . . Core Hits 235 | . 3 29 8 31 24 . 22 . 41 45 7 25 . . Critical Kills 5 | . . 1 . . . . . . . 3 . 1 . . Critical Parts Destroyed 6 | . . . . . . . 1 . . 1 1 3 . . Critical Strikes 28 | . . 1 . 3 3 . 3 . . 11 1 6 . . Burn 8 | . . . . 3 3 . 1 . . . . 1 . . Meltdown 4 | . . 1 . . . . . . . 3 . . . . Destroy 1 | . . . . . . . . . . 1 . . . . Blast 8 | . . . . . . . . . . 7 . 1 . . Smash 6 | . . . . . . . 1 . . . 1 4 . . Sever 1 | . . . . . . . 1 . . . . . . . Melee Attacks 54 | . . . . . . . 25 . . 1 5 23 . . Thermal 4 | . . . . . . . 4 . . . . . . . Impact 36 | . . . . . . . 7 . . 1 5 23 . . Slashing 14 | . . . . . . . 14 . . . . . . . Piercing . | . . . . . . . . . . . . . . . Sneak Attacks 3 | . . . . . . . . . . . . 3 . . Combat Hostiles . | . . . . . . . . . . . . . . . Follow-up Attacks 2 | . . . . . . . 2 . . . . . . . Damage Inflicted 17431 | . 33 1217 303 1992 1399 . 2467 . 2791 4314 1047 1868 . . Guns 6025 | . 33 667 68 1299 1399 . 1404 . 48 422 . 685 . . Cannons 7621 | . . 550 41 683 . . 100 . 1815 3298 855 279 . . Explosions 2092 | . . . 137 . . . 528 . 928 499 . . . . Melee 1531 | . . . . . . . 435 . . . 192 904 . . Ramming 162 | . . . 57 10 . . . . . 95 . . . . Kinetic 5423 | . 21 571 68 703 429 . . . 285 2266 363 717 . . Thermal 8887 | . . 550 41 1279 970 . 1504 . 1916 1953 492 182 . . Explosive 665 | . . . 137 . . . 528 . . . . . . . Electromagnetic 763 | . 12 96 . . . . . . 590 . . 65 . . Impact 1274 | . . . . . . . 178 . . . 192 904 . . Slashing 257 | . . . . . . . 257 . . . . . . . Piercing . | . . . . . . . . . . . . . . . Highest Corruption 25 | . . . 2 2 2 . . . 25 15 15 17 17 1 Average Corruption 8 | . . . 2 2 2 . . . 17 8 14 10 17 1 Corruption Purged 7 | . . . . . . . . . . . 7 . . . Corruption Blocked . | . . . . . . . . . . . . . . . Effects 175 | . . . 1 4 16 . . . 9 54 38 52 1 . Message Errors 32 | . . . 1 . 2 . . . 2 12 7 8 . . Matter Fused 44 | . . . . 2 4 . . . 2 9 12 15 . . Heat Flow Errors 24 | . . . . 1 2 . . . 1 9 5 5 1 . Energy Discharges 23 | . . . . . 3 . . . . 5 4 11 . . Parts Fused 2 | . . . . . . . . . 1 . 1 . . . Data Loss (minor) 20 | . . . . 1 . . . . . 10 5 4 . . Data Loss (major) 3 | . . . . . 1 . . . . . . 2 . . Misfires 8 | . . . . . 1 . . . . 2 3 2 . . Alerts 5 | . . . . . . . . . . 2 1 2 . . Weapon Failures 14 | . . . . . 3 . . . 3 5 . 3 . . Overload Shots 93 | . . . . 12 40 . 41 . . . . . . . Effects 3 | . . . . . 1 . 2 . . . . . . . Energy Bleed 2 | . . . . . 1 . 1 . . . . . . . Heat Surge 1 | . . . . . . . 1 . . . . . . . Overflow Damage 1103 | . . 12 . 30 . . 97 . 37 323 162 442 . . Projectiles 347 | . . 12 . 30 . . . . 37 159 108 1 . . Explosions 191 | . . . . . . . 27 . . 164 . . . . Melee 565 | . . . . . . . 70 . . . 54 441 . . Knockbacks 38 | . . . . . . . 3 . 1 21 6 7 . . Impact 9 | . . . . . . . 3 . . 1 1 4 . . Kinetic 27 | . . . . . . . . . 1 18 5 3 . . Secondary 2 | . . . . . . . . . . 2 . . . . Self-Inflicted Damage 412 | . . . 39 4 . . 159 . 39 171 . . . . Shots 11 | . . . 1 . . . 5 . 3 2 . . . . Rammed 13 | . . . 1 3 . . . . . 9 . . . . Targets Rammed 16 | . . . 1 3 . . . . . 12 . . . . Kicked . | . . . . . . . . . . . . . . . Crushed 3 | . . . . . . . . . . 3 . . . . Highest Temperature 573 | . . 360 83 189 264 . 200 . 414 270 400 573 122 . Average Temperature 95 | . . 124 33 51 67 . 62 . 94 81 154 142 68 . Received Heat Transfer 3567 | . . 195 21 540 216 . 891 . 1029 276 225 153 . 21 Effects 15 | . . 1 . . . . . . . 3 5 6 . . Shutdowns 5 | . . . . . . . . . . . 2 3 . . Energy Bleed 1 | . . 1 . . . . . . . . . . . . Interference 6 | . . . . . . . . . . 3 3 . . . Short Circuit 2 | . . . . . . . . . . . . 2 . . Damage (core) 1 | . . . . . . . . . . . . 1 . . Siege Activations . | . . . . . . . . . . . . . . . Robots Corrupted . | . . . . . . . . . . . . . . . Combat Hostiles . | . . . . . . . . . . . . . . . Parts Fried 6 | . . . . . . . . . 1 . 1 4 . . Impact Corruptions 20 | . . . . . . . 5 . . 1 2 12 . . Robots Melted 5 | . . 1 . 1 . . . . . 3 . . . . Combat Hostiles 4 | . . . . 1 . . . . . 3 . . . . Parts Melted 11 | . . 2 . 3 1 . . . . 3 . 2 . . Heat Transferred 13080 | . . 999 74 2404 1646 . 2216 . 2476 2119 750 396 . . Parts Sabotaged 19 | . . . . . 19 . . . . . . . . . Parts Stolen . | . . . . . . . . . . . . . . . Parts Stripped . | . . . . . . . . . . . . . . . Power Chain Reactions 4 | . . . . . . . . . 4 . . . . . Alert | -11 -10 -9 -9 -8 -8 -7 -7 -6 -6 -5 -5 -5 -5 -4 ------- Run | Yrd Mat Mat Min Mat Gar Fac DSF Fac Ext Fac Upp Upp War Pro Peak Influence 962 | . 93 346 286 238 962 504 573 324 347 497 . . . . Initial 504 | . . 39 129 111 154 504 352 300 153 128 . . . . Average 280 | . 63 202 237 140 610 504 423 315 219 212 . . . . Maximum Alert Level 3 | . . 1 1 1 3 2 2 1 1 2 . . . . Low Security (%) 41 | . 100 36 1 90 2 . . . 39 60 . . . . Level 1 39 | . . 63 98 9 25 . 63 100 60 23 . . . . Level 2 11 | . . . . . 22 100 36 . . 15 . . . . Level 3 7 | . . . . . 49 . . . . . . . . . Level 4 . | . . . . . . . . . . . . . . . Level 5 . | . . . . . . . . . . . . . . . High Security . | . . . . . . . . . . . . . . . Max Security . | . . . . . . . . . . . . . . . Sterilizations 1 | . . . . . . . 1 . . . . . . . Squads Dispatched 15 | . 1 . . 2 . . 2 1 2 6 . 1 . . Investigation 2 | . 1 . . . . . . . . 1 . . . . Extermination 5 | . . . . . . . . 1 . 4 . . . . Reinforcement 7 | . . . . 2 . . 2 . 2 1 . . . . Assault 1 | . . . . . . . . . . . . 1 . . Garrison . | . . . . . . . . . . . . . . . Intercept . | . . . . . . . . . . . . . . . Searches Triggered . | . . . . . . . . . . . . . . . Construction Impeded 1 | . . . . . . . . . 1 . . . . . Haulers Reinforced 1 | . . . . . . . . . . 1 . . . . Active Scanning Responses . | . . . . . . . . . . . . . . . Cargo Convoy Interrupts . | . . . . . . . . . . . . . . . Stealth | -11 -10 -9 -9 -8 -8 -7 -7 -6 -6 -5 -5 -5 -5 -4 --------- Run | Yrd Mat Mat Min Mat Gar Fac DSF Fac Ext Fac Upp Upp War Pro Distress Signals 5 | . . 2 . 3 . . . . . . . . . . Communications Jammed 2 | . . . . . . . . . . 2 . . . . Distress Signals 2 | . . . . . . . . . . 2 . . . . Times Spotted 221 | . 3 35 7 23 26 . 21 1 23 25 5 41 . 11 Peak Tracking Total 11 | . 3 6 4 4 6 . 6 1 11 4 2 7 . 8 Tactical Retreats 29 | . . 1 . 1 . . 8 . 2 3 1 10 . 3 Traps | -11 -10 -9 -9 -8 -8 -7 -7 -6 -6 -5 -5 -5 -5 -4 ------- Run | Yrd Mat Mat Min Mat Gar Fac DSF Fac Ext Fac Upp Upp War Pro Traps Triggered 15 | . 2 . . 1 5 . 1 . 2 3 . 1 . . Indirectly . | . . . . . . . . . . . . . . . Trap Hack Attempts . | . . . . . . . . . . . . . . . Triggered . | . . . . . . . . . . . . . . . Disarmed . | . . . . . . . . . . . . . . . Reprogrammed . | . . . . . . . . . . . . . . . Reused 6 | . . . . . . . 1 . . . . 5 . . Traps Extracted . | . . . . . . . . . . . . . . . Installed 8 | . . . . . . . 1 . . . . 7 . . Triggered 6 | . . . . . . . 1 . . . . 5 . . Most Traps Carried 8 | . . . . . . . 2 . . . 6 8 5 5 Machines | -11 -10 -9 -9 -8 -8 -7 -7 -6 -6 -5 -5 -5 -5 -4 ---------- Run | Yrd Mat Mat Min Mat Gar Fac DSF Fac Ext Fac Upp Upp War Pro Machines Disabled 19 | . . 2 1 . 5 . . . 3 8 . . . . Max in Single Turn 2 | . . 1 1 . 2 . . . . 2 . . . . Garrison Access 2 | . . . . . . . . . . 2 . . . . Garrison Relay 3 | . . . . . 3 . . . . . . . . . Phase Generator 1 | . . . . . 1 . . . . . . . . . Energy Cycler 2 | . . . . . . . . . 2 . . . . . Machines Repaired . | . . . . . . . . . . . . . . . Machines Dismantled . | . . . . . . . . . . . . . . . Machines Sabotaged . | . . . . . . . . . . . . . . . Overloaded Fab Kills . | . . . . . . . . . . . . . . . Hacking | -11 -10 -9 -9 -8 -8 -7 -7 -6 -6 -5 -5 -5 -5 -4 --------- Run | Yrd Mat Mat Min Mat Gar Fac DSF Fac Ext Fac Upp Upp War Pro Machines Accessed 32 | . 3 3 . 2 2 1 . 4 7 9 1 . . . Terminals 20 | . 2 2 . . 2 1 . 1 7 5 . . . . Fabricators 2 | . . . . . . . . 1 . 1 . . . . Repair Stations 2 | . . 1 . . . . . 1 . . . . . . Recycling Units 3 | . 1 . . . . . . 1 . 1 . . . . Scanalyzers 1 | . . . . 1 . . . . . . . . . . Garrison Access 3 | . . . . 1 . . . . . 2 . . . . Total Hacks 86 | . 17 8 . 5 4 1 . 13 25 12 1 . . . Successful 35 | . 9 3 . 4 . 1 . 3 9 5 1 . . . Failed 51 | . 8 5 . 1 4 . . 10 16 7 . . . . Catastrophic 13 | . . 1 . . 3 . . 3 4 2 . . . . Database Lockouts . | . . . . . . . . . . . . . . . Manual 23 | . 9 2 . . . . . . 8 4 . . . . Terminals 58 | . 13 6 . . 4 1 . 2 25 7 . . . . Fabricators 5 | . . . . . . . . 4 . 1 . . . . Repair Stations 5 | . . 2 . . . . . 3 . . . . . . Recycling Units 9 | . 4 . . . . . . 4 . 1 . . . . Scanalyzers 3 | . . . . 3 . . . . . . . . . . Garrison Access 5 | . . . . 2 . . . . . 3 . . . . Terminal Hacks 15 | . 5 . . . . 1 . 1 7 . 1 . . . Prototype ID Bank 1 | . 1 . . . . . . . . . . . . . Open Door 4 | . . . . . . . . . 3 . 1 . . . Open DSF 2 | . . . . . . 1 . 1 . . . . . . Unreport Threat 1 | . . . . . . . . . 1 . . . . . Locate Traps 1 | . . . . . . . . . 1 . . . . . Transport Status 1 | . 1 . . . . . . . . . . . . . Recall Reinforcements 1 | . . . . . . . . . 1 . . . . . Hauler Manifests 1 | . 1 . . . . . . . . . . . . . Registered Components 1 | . 1 . . . . . . . . . . . . . Zone Layout 2 | . 1 . . . . . . . 1 . . . . . Fabricator Hacks 1 | . . . . . . . . . . 1 . . . . Network Status 1 | . . . . . . . . . . 1 . . . . Repair Station Hacks 3 | . . 2 . . . . . 1 . . . . . . Scan Component 2 | . . 1 . . . . . 1 . . . . . . Repair 1 | . . 1 . . . . . . . . . . . . Recycling Unit Hacks 3 | . 2 . . . . . . 1 . . . . . . Retrieve Components 3 | . 2 . . . . . . 1 . . . . . . Scanalyzer 3 | . . . . 3 . . . . . . . . . . Insert Component 1 | . . . . 1 . . . . . . . . . . Analyze 2 | . . . . 2 . . . . . . . . . . Garrison Access Hacks 4 | . . . . 1 . . . . . 3 . . . . Unlock Access 1 | . . . . 1 . . . . . . . . . . Seal Access 2 | . . . . . . . . . . 2 . . . . Coupler Status 1 | . . . . . . . . . . 1 . . . . Unauthorized Hacks 6 | . 2 1 . . . . . . 2 1 . . . . Terminals 5 | . 1 1 . . . . . . 2 1 . . . . Track 1 | . . . . . . . . . 1 . . . . . Assimilate 1 | . . . . . . . . . . 1 . . . . Botnet 3 | . 1 1 . . . . . . 1 . . . . . Fabricators . | . . . . . . . . . . . . . . . Repair Stations . | . . . . . . . . . . . . . . . Recycling Units 1 | . 1 . . . . . . . . . . . . . Monitor 1 | . 1 . . . . . . . . . . . . . Scanalyzers . | . . . . . . . . . . . . . . . Garrison Access . | . . . . . . . . . . . . . . . Data Cores Recovered 1 | . . 1 . . . . . . . . . . . . Used . | . . . . . . . . . . . . . . . Hacking Detections 23 | . 3 3 . 1 2 . . 3 5 6 . . . . Full Trace Events 5 | . 2 . . . 2 . . . . 1 . . . . Feedback Events . | . . . . . . . . . . . . . . . Feedback Blocked . | . . . . . . . . . . . . . . . Robot Schematics Acquired . | . . . . . . . . . . . . . . . Robots Built . | . . . . . . . . . . . . . . . Authchips . | . . . . . . . . . . . . . . . Time . | . . . . . . . . . . . . . . . Total Robot Build Rating . | . . . . . . . . . . . . . . . Part Schematics Acquired 1 | . . . . 1 . . . . . . . . . . Parts Built . | . . . . . . . . . . . . . . . Authchips . | . . . . . . . . . . . . . . . Time . | . . . . . . . . . . . . . . . Total Part Build Rating . | . . . . . . . . . . . . . . . Parts Repaired 1 | . . 1 . . . . . . . . . . . . Time 26 | . . 26 . . . . . . . . . . . . Parts Recycled . | . . . . . . . . . . . . . . . Recycled Matter . | . . . . . . . . . . . . . . . Retrieved Matter . | . . . . . . . . . . . . . . . Retrieved Components . | . . . . . . . . . . . . . . . Parts Scanalyzed 1 | . . . . 1 . . . . . . . . . . Part Schematics Acquired 1 | . . . . 1 . . . . . . . . . . Parts Damaged . | . . . . . . . . . . . . . . . Bothacking | -11 -10 -9 -9 -8 -8 -7 -7 -6 -6 -5 -5 -5 -5 -4 ------------ Run | Yrd Mat Mat Min Mat Gar Fac DSF Fac Ext Fac Upp Upp War Pro Used RIF Installer 1 | . . . . . 1 . . . . . . . . . Robots Hacked . | . . . . . . . . . . . . . . . Non-combat . | . . . . . . . . . . . . . . . Combat . | . . . . . . . . . . . . . . . Robot Hacks Applied . | . . . . . . . . . . . . . . . Relay Couplers Released 12 | . . . . . 12 . . . . . . . . . Machine Destruction 12 | . . . . . 12 . . . . . . . . . Fabnet Peak Effective % . | . . . . . . . . . . . . . . . Robots Rewired . | . . . . . . . . . . . . . . . Allies Hacked . | . . . . . . . . . . . . . . . Hacks Repelled . | . . . . . . . . . . . . . . . Allies | -11 -10 -9 -9 -8 -8 -7 -7 -6 -6 -5 -5 -5 -5 -4 -------- Run | Yrd Mat Mat Min Mat Gar Fac DSF Fac Ext Fac Upp Upp War Pro Total Allies 8 | . . . 2 . . . . . 6 . . . . . Largest Group 4 | . . . 2 1 . . . . 4 . . . . . Highest-Rated Group 235 | . . . 42 11 . . . . 235 . . . . . Highest-Rated Ally 159 | . . . 31 11 . . . . 159 . . . . . Total Orders 8 | . . . . . . . . . . . 6 2 . . EXPLORE 5 | . . . . . . . . . . . 3 2 . . RETURN 3 | . . . . . . . . . . . 3 . . . Ally Attacks 34 | . . . 2 . . . . . 32 . . . . . Total Damage 548 | . . . 20 . . . . . 528 . . . . . Kills 7 | . . . 1 . . . . . 6 . . . . . Allies Corrupted . | . . . . . . . . . . . . . . . Allies Melted . | . . . . . . . . . . . . . . . Intel | -11 -10 -9 -9 -8 -8 -7 -7 -6 -6 -5 -5 -5 -5 -4 ------- Run | Yrd Mat Mat Min Mat Gar Fac DSF Fac Ext Fac Upp Upp War Pro Robot Analysis Total . | . . . . . . . . . . . . . . . Derelict Logs Recovered 6 | . . . 1 . . . . . . . 2 2 . 1 Drone Launches 8 | . . . . . . . . . . . 5 3 . . Drone Recoveries 6 | . . . . . . . . . . . 5 1 . . Exploration | -11 -10 -9 -9 -8 -8 -7 -7 -6 -6 -5 -5 -5 -5 -4 ------------- Run | Yrd Mat Mat Min Mat Gar Fac DSF Fac Ext Fac Upp Upp War Pro Turns Passed 9204 | . 170 918 168 749 1006 7 467 370 724 2195 874 1340 95 121 Spaces Moved 5707 | 1 125 426 114 360 572 5 239 361 361 1075 667 976 110 315 Core 48 | . . . . . 4 . 39 . . . . 5 . . Treads 891 | . . . . . . . 1 . 60 827 . 3 . . Legs 947 | 1 125 318 . . . . . 202 301 . . . . . Wheels 1369 | . . 108 114 360 568 5 40 . . . . 174 . . Hover 1716 | . . . . . . . 159 159 . 248 667 483 . . Flight 736 | . . . . . . . . . . . . 311 110 315 Fastest Speed 32 | 120 120 105 105 105 105 120 48 40 120 92 96 35 32 32 Average Speed 113 | 120 120 139 105 119 126 120 84 86 138 150 99 97 61 35 Slowest Speed 1400 | 120 120 260 105 120 1400 120 170 190 190 286 151 200 72 115 Overloaded Moves . | . . . . . . . . . . . . . . . Propulsion Burnouts . | . . . . . . . . . . . . . . . Robots Hopped 1 | . . . . . . . . . . . . . . 1 Cave-ins Triggered . | . . . . . . . . . . . . . . . Exploration Rate (%) 43 | 2 34 50 28 29 56 . 94 9 44 21 88 87 17 48 Regions Visited 14 Branch Regions 6 Pre-discovered Areas 3 | . . . 1 . . . . . . . . 1 . 1 Known Exits Taken 7 | . . . 1 1 . 1 . . 1 1 1 1 . . Unknown Exits Taken 5 | 1 1 1 . . . . . 1 . . . . 1 . Scrap Searched 7 | . . . 2 . . . . . . . 2 2 . 1 Spaces Dug 32 | . . . . . 3 . 1 . . 28 . . . . Terrain Destroyed 286 | . . . 7 3 76 . 39 . 5 130 20 6 . . Melee 1 | . . . . . . . . . . 1 . . . . Projectile 119 | . . . . 3 7 . 10 . 5 68 20 6 . . AOE 166 | . . . 7 . 69 . 29 . . 61 . . . . Terrain Rammed . | . . . . . . . . . . . . . . . Walls Destroyed . | . . . . . . . . . . . . . . . Machines Disabled . | . . . . . . . . . . . . . . . Actions | -11 -10 -9 -9 -8 -8 -7 -7 -6 -6 -5 -5 -5 -5 -4 --------- Run | Yrd Mat Mat Min Mat Gar Fac DSF Fac Ext Fac Upp Upp War Pro Total 7536 | . 136 629 149 558 766 6 392 422 490 1464 825 1237 138 324 Wait 694 | . 4 77 21 72 38 . 15 14 27 192 96 107 24 7 Move 5691 | . 124 425 113 359 571 4 238 360 360 1074 666 975 109 313 Hop 1 | . . . . . . . . . . . . . . 1 Pick Up 126 | . 1 18 4 19 18 . 16 14 9 14 5 7 . 1 Fast Attach 109 | . 1 12 . 9 14 . 22 7 12 14 3 15 . . Attach 80 | . . 4 1 11 13 2 13 4 5 7 1 16 2 1 Detach 30 | . . 1 . 5 2 . 3 . 2 6 1 7 3 . Swap 89 | . 1 8 3 9 3 . 6 6 10 20 14 9 . . Drop 127 | . 1 21 . 10 9 . 13 17 15 23 7 10 . 1 Fire 470 | . 4 63 6 61 58 . 43 . 47 101 27 60 . . Melee 51 | . . . . . . . 22 . . 1 5 23 . . Ram 6 | . . . 1 3 . . . . . 2 . . . . Kick . | . . . . . . . . . . . . . . . Crush 10 | . . . . . . . . . . 10 . . . . Escape Stasis 43 | . . . . . 40 . . . 3 . . . . . Rewire 1 | . . . . . . . . . . . . 1 . . Trap 8 | . . . . . . . 1 . . . . 7 . . Miscellaneous . | . . . . . . . . . . . . . . . Route ------- -11/Scrapyard -10/Materials -9/Materials (discovered 2 exits: *Mat / [*Min]) -9/Mines -8/Materials (discovered 3 exits: Fac / Sto / Gar) -8/Garrison -7/Factory -7/DSF -6/Factory -6/Extension -5/Factory -5/Upper Caves -5/Upper Caves (discovered 2 exits: *Fac / *War) -5/Warlord -4/Proximity Caves History --------- Turn | Location | Event 1 | -11/Scrapyard | Discovered new exit (range 0) 1 | -11/Scrapyard | Entered Materials 152 | -10/Materials | Discovered new exit (range 8) 171 | -10/Materials | Entered another Materials area 171 | -9/Materials | Evolved 2 slots: Propulsion x2 321 | -9/Materials | Build established: Mutant 543 | -9/Materials | Discovered new exit (range 10) 776 | -9/Materials | Repaired Aluminum Leg 1066 | -9/Materials | Discovered new exit (range 6) 1089 | -9/Materials | Entered Mines 1244 | -9/Mines | Learned 4 Materials zone layouts 1244 | -9/Mines | Discovered new exit (range 7) 1245 | -9/Mines | Learned location of Storage (-8) 1252 | -9/Mines | Identified exit to Materials 1255 | -9/Mines | Assembled infested the area 1257 | -9/Mines | Entered Materials 1257 | -8/Materials | Accompanied by 1 ally 1257 | -8/Materials | Evolved 2 slots: Utility x2 1258 | -8/Materials | Identified exit to Factory 1258 | -8/Materials | Identified exit to Storage 1568 | -8/Materials | Lost 3 parts (1n1u1w) 1858 | -8/Materials | Lost 4 parts (3p1n) 1914 | -8/Materials | Identified exit to Garrison 2006 | -8/Materials | Entered Garrison 2216 | -8/Garrison | Garrison Relay disabled 2440 | -8/Garrison | Triggered checkpoint 2477 | -8/Garrison | Garrison Relay disabled 2495 | -8/Garrison | Core integrity fell below 50% 2538 | -8/Garrison | Lost 3 parts (1n1u1w) 2684 | -8/Garrison | Garrison Relay disabled 2696 | -8/Garrison | Installed Relay Interface Framework 2840 | -8/Garrison | Discovered exit to Factory (range 15) 2938 | -8/Garrison | Phase Generator disabled 3012 | -8/Garrison | Entered Factory 3012 | -7/Factory | Evolved 2 slots: Utility x2 3018 | -7/Factory | Identified exit to DSF 3019 | -7/Factory | Entered DSF 3057 | -7/DSF | Additional patrols routed to DSF 3197 | -7/DSF | Core integrity fell below 50% 3238 | -7/DSF | Released all parts (5) 3262 | -7/DSF | Lost 19 parts (5p4n6u4w) 3265 | -7/DSF | Core integrity fell below 20% 3309 | -7/DSF | Discovered new exit (range 16) 3338 | -7/DSF | Sterilization system engaged 3358 | -7/DSF | Ambient heat levels rising (+10) 3373 | -7/DSF | Ambient heat levels rising (+10) 3388 | -7/DSF | Ambient heat levels rising (+10) 3403 | -7/DSF | Ambient heat levels rising (+10) 3418 | -7/DSF | Ambient heat levels rising (+10) 3433 | -7/DSF | Ambient heat levels rising (+10) 3448 | -7/DSF | Ambient heat levels rising (+10) 3463 | -7/DSF | Ambient heat levels rising (+10) 3478 | -7/DSF | Ambient heat levels rising (+10) 3486 | -7/DSF | Entered Factory 3486 | -6/Factory | Evolved 2 slots: Propulsion x2 3613 | -6/Factory | Discovered new exit (range 10) 3673 | -6/Factory | Build established: Hacker-Mutant 3856 | -6/Factory | Entered Extension 3890 | -6/Extension | Rescued a captive Derelict 3891 | -6/Extension | Rescued a captive Derelict 4019 | -6/Extension | Rescued a captive Derelict 4065 | -6/Extension | Energy Cycler disabled 4065 | -6/Extension | Rescued a captive Derelict 4066 | -6/Extension | Rescued a captive Derelict 4074 | -6/Extension | Rescued a captive Derelict 4093 | -6/Extension | Rescued A7 4147 | -6/Extension | Spotted B-75 Beast 4153 | -6/Extension | Spotted B-75 Beast 4218 | -6/Extension | Lost 4 allies 4244 | -6/Extension | Lost 3 parts (1p1u1w) 4383 | -6/Extension | Destroyed B-75 Beast 4409 | -6/Extension | Destroyed B-75 Beast 4421 | -6/Extension | Found Corrupted Prototype Protection 4421 | -6/Extension | Identified Med. Regenerative Plating 4424 | -6/Extension | Discovered new exit (range 14) 4477 | -6/Extension | System corruption reached 10% 4556 | -6/Extension | Disrupted transfer network 4569 | -6/Extension | Identified exit to Factory 4580 | -6/Extension | Entered Factory 4580 | -5/Factory | Evolved 2 slots: Power x1, Weapon x1 5159 | -5/Factory | Build established: Scavenger-Skirmisher 6246 | -5/Factory | System corruption reached 10% 6681 | -5/Factory | Discovered new exit (range 14) 6700 | -5/Factory | Identified exit to Upper Caves 6775 | -5/Factory | Entered Upper Caves 7101 | -5/Upper Caves | Build established: Mutant 7292 | -5/Upper Caves | Encountered a Warlord checkpoint 7316 | -5/Upper Caves | Learned location of 1 exit from Factory 7321 | -5/Upper Caves | Identified exit to Upper Caves 7608 | -5/Upper Caves | Attracted the attention of an 0b10 base 7649 | -5/Upper Caves | Entered another Upper Caves area 7776 | -5/Upper Caves | Lost 4 parts (1p1u2w) 7783 | -5/Upper Caves | Discovered new exit (range 28) 7841 | -5/Upper Caves | Identified exit to Factory 8012 | -5/Upper Caves | Lost 3 parts (1n2u) 8151 | -5/Upper Caves | Core integrity fell below 50% 8364 | -5/Upper Caves | Build established: Scavenger-Mutant 8610 | -5/Upper Caves | Spotted B-75 Beast 8692 | -5/Upper Caves | Ambushed by wild Derelicts 8785 | -5/Upper Caves | Core integrity fell below 20% 8798 | -5/Upper Caves | Released all parts (5) 8825 | -5/Upper Caves | Lost 11 parts (2p4n2u3w) 8851 | -5/Upper Caves | Attracted the attention of an 0b10 outpost 8861 | -5/Upper Caves | Encountered a Warlord checkpoint 8861 | -5/Upper Caves | Identified exit to Warlord 8989 | -5/Upper Caves | Entered Warlord 9018 | -5/Warlord | Lost 4 allies 9025 | -5/Warlord | System corruption cleaned by Quarantine Array 9043 | -5/Warlord | Discovered new exit (range 15) 9084 | -5/Warlord | Entered Proximity Caves 9105 | -4/Proximity Caves | Attracted the attention of an 0b10 checkpoint 9161 | -4/Proximity Caves | Lost 3 parts (1n1u1w) 9163 | -4/Proximity Caves | Learned location of Quarantine (-2) 9205 | -4/Proximity Caves | Destroyed by P-70 Sage with Tesla Rifle Last Messages --------------- 09025_ ANNOUNCEMENT: Quarantine Array scanned 1 system, cleaned 1. 09043_ EXIT=FOUND LOCATION=UNKNOWN GOAL=ESCAPE 09086_ Searching scrap... 09086_ Found Reaction Control System. 09086_ Found Hrd. Light Armor Plating. 09086_ Found 14 Matter. 09086_ Acquired Hrd. Light Armor Plating. 09099_ Mak. Light Armor Plating destroyed. 09105_ Y-64 Sentinel: "INTERCEPTING UNREGISTERED DERELICT." 09128_ Impact Mace destroyed. 09130_ Cesium-ion Thruster destroyed. 09163_ Acquired derelict log, extracted data. World map updated: -2/Quarantine. 09188_ Acquired 5 matter. 09197_ Dropped Structural Scanner. 09205_ VTOL Module destroyed. Map ----- +----------------------------------------------------+ | ?????????????????????????????????????????????????? | | ?????????????????????????????????????????????????? | | ?????????????????????????????????????????????????? | | ?????????????????????????????????????????????????? | | ?????????????????????????????????????????????????? | | ?????????????????????????????????????????????????? | | ?????????????????????????????????????????????????? | | ?????????????????????????????????????????????????? | | ?????????????????????????????????????????????????? | | ?????????????????????????????????????????????????? | | ??????????????????????? ?????????????????????????? | | ??????????????????????? #????????????????????????? | | ??????????????????????? #????? ????????????????? | | ?????????????????????? ????? #????????????????? | | ?????????????????????? ???? ##???????????????? | | ??????????????????????? ???# ????????????????? | | ??????????????????????? ### ?????????????# | | ?????????????## ?????? ?????????????##### | | ??????######### ???? ??? #####????### ## | | ############## ????? ????########?### ## | | ######## ## ##????? ???### ####### ## | | # ### ##????? ????### #### ## | | ##?????# ?????## ### | | ? ###?????# #?????## ###? | | ?## ###?##??# #?????## ###?? | | ?## #### ?#@ ##????## ##??? | | ?## ## ##### #p ######## ####??? | | ?## #### ##### ######## #####??? | | ?## ##### ###### ### ###????? | | ?## ##### ##### p ## ##?????? | | ### ###### p ! ## ###?????? | | ### ##### ## ####= ####?####? | | ###### ### #### % ####?? ###? | | ####### ### ## ##### ##### ####??? ##? | | ######## ####### ## ############%=####?? ##? | | ###### ###### ## ###?#########= #### ###? | | ????## ##### ########????## ## ##?? | | ????## ##### #########??## ###?? | | ????### ## ####### ###??? | | ?####### #### ####??? | | ######### ##### ### ###???? | | # "" ##### ## ###????? | | # " "" ##### #########????? | | # " " """ ##### ##### #########?????? | | # """ ########### ## ###???????????? | | "" "" ######?########### #######???????? | | """" " ##??????##### #### #######? #??? | | # "" #####??????### #### ## ##??? | | # #####??????## ## ##??? | | ##### ###?????## ###??? | +----------------------------------------------------+ Best States ------------- Heat Dissipation 98 Energy Generation 32 Energy Capacity 490 Matter Stores 300 Matter Capacity 300 Sight Range 16 Robot Scan Range 15 Terrain Scan Density 10 Jamming Range 14 Armor Coverage 675 Resistance: KI 30 Resistance: TH 25 Power Shielding 33 Propulsion Shielding 33 Evasion (%) 63 Targeting Accuracy 8 Recoil Reduction 6 Energy Filtering 50 Defensive Hacking 36 Trap Extractor Capacity 8 Item Schematics ----------------- Arm. Wheel | -8/Materials | Scanalyzed Robot Schematics ------------------ None Fabricated ------------ Nothing Alien Tech Used ----------------- None Achievements -------------- Ambidextrous Prison Break Challenges ------------ None Game ------ Seed ThermoelectricPulseShotgun Manual? 0 Play Time 02:54:36 Cumulative 56.7 hours Start 2024.04.10 @ 22:35:20 End 2024.04.12 @ 02:14:12 Sessions 7 Manual Loads 0 Difficulty Rogue Special Mode None Game No. 26 Rogue 26 Adventurer 0 Explorer 0 Win Type - Total 1 Types 1/0/0/0/0/0/0/0/0 Lore% 30 Gallery% 49 Achievement% 37 Wizard Run 0 Options --------- Layout 1 ASCII 0 Keyboard 0 Movement Mouse Keybinds 0 Fullscreen 2 Font 24/Smallcaps Map View 50x35 Zoom Use 0% Tactical HUD 1 Map Filters NONE Filters NONE Steam 1 RUN: bdc0161b-f6a2-4e39-ac78-85d7c1b48ae7